bitfinex/quotes_ETHUSD_20220219
["timestamp","ask_amount","ask_price","bid_price","bid_amount"]
[1645270795113,0.71822178,2725.5,2725.2,0.72191933]
[1645270795352,1.55850074,2725.4,2725.2,0.72191933]
[1645270795550,1.55850074,2725.4,2725.2,0.54915701]
[1645270796150,1.56098481,2725.4,2725.2,0.54915701]
[1645270796555,2.47879481,2725.4,2725.2,0.54915701]
[1645270796753,0.92029407,2725.4,2725.2,0.54915701]
[1645270796953,0.91781,2725.4,2725.2,0.54915701]
[1645270797552,1.55860926,2725.3,2725.2,0.54915701]
[1645270798352,0.91781,2725.4,2725.2,0.54915701]
[1645270798552,1.55862333,2725.3,2725.2,0.54915701]
[1645270800588,1.56110436,2725.4,2725.2,0.54915701]
[1645270800787,1.55862333,2725.3,2725.2,0.54915701]
[1645270801686,1.56110456,2725.4,2725.2,0.54915701]
[1645270801886,1.55862333,2725.4,2725.2,0.54915701]
[1645270802186,1.56110456,2725.4,2725.2,0.54915701]
[1645270802387,13.0,2725.3,2724.9,0.00105196]
[1645270802592,13.0,2725.3,2723.5,0.1416]
[1645270802593,20.5,2725.1,2723.7,1.96928]
[1645270802844,2.48544995,2725.4,2723.2,7.2526]
[1645270802845,12.16806,2724.9,2723.2,7.2526]
[1645270803047,12.55862333,2724.8,2723.2,7.2526]
[1645270803242,11.91809,2724.6,2724.1,0.9180808]
[1645270803443,11.91809,2724.6,2723.2,7.2526]
[1645270803444,0.86039107,2723.8,2723.2,7.2526]
[1645270803642,0.86039107,2723.8,2722.9,0.1835]
[1645270803643,0.86039107,2723.8,2723.1,0.91817]
[1645270803944,1.11039107,2723.8,2723.2,0.1834]
[1645270804342,1.11039107,2723.8,2723.3,3.6725708]
[1645270804943,1.11039107,2723.8,2723.4,0.91816]
[1645270805143,1.11039107,2723.8,2723.3,3.6725708]
[1645270805144,1.11039107,2723.8,2723.3,0.9181208]
[1645270805344,12.11039107,2723.8,2723.0,1.8366189]
[1645270805548,1.11039107,2723.8,2723.0,1.8366189]
[1645270805742,1.11039107,2723.8,2722.8,0.00221955]
[1645270806142,0.84395963,2723.3,2722.8,0.00221955]
[1645270806341,0.84395963,2723.3,2722.9,0.9183989]
[1645270806790,0.84395963,2723.3,2722.8,1.8367604]
[1645270806994,0.84395963,2723.3,2722.9,8.168e-05]
[1645270807189,0.84395963,2723.3,2722.5,0.01865477]
[1645270807190,0.04924994,2722.7,2722.5,0.01865477]
[1645270807691,0.78534363,2722.6,2722.5,0.01865477]
[1645270807888,11.78534363,2722.6,2721.9,0.00221955]
[1645270808093,11.78534363,2722.6,2721.6,0.00221955]
[1645270808288,11.78534363,2722.6,2721.4,0.00221955]
[1645270808492,0.78534363,2722.6,2721.6,1.8374338]
[1645270808690,1.70406363,2722.6,2721.8,0.9187213]
[1645270808888,12.70406363,2722.6,2721.9,0.00221955]
[1645270809288,0.85112105,2722.1,2721.9,0.00221955]
[1645270809492,0.85112105,2722.1,2721.7,0.00221955]
[1645270809690,0.85112105,2722.1,2721.6,1.8374338]
[1645270809892,0.85112105,2722.1,2721.5,0.00221955]
[1645270810093,0.85112105,2722.1,2721.6,0.9187936]
[1645270810744,0.25,2722.2,2721.6,0.9187936]
[1645270811040,0.25,2722.2,2721.7,0.08611616]
[1645270811637,0.25,2722.2,2721.7,1.92319616]
[1645270811835,0.25,2722.2,2721.8,0.91940928]
[1645270812034,0.25,2722.2,2721.8,1.00552544]
[1645270812239,0.0001,2722.2,2721.9,0.08611616]
[1645270812437,0.00271416,2722.6,2722.0,0.437]
[1645270812637,0.04924994,2722.7,2722.2,0.91824]
[1645270812939,0.00271425,2722.6,2722.5,0.91821]
[1645270813137,0.00271425,2722.6,2722.5,1.35521]
[1645270813348,0.25,2723.7,2722.6,20.5]
[1645270813542,0.82151344,2724.4,2722.8,11.0]
[1645270813739,0.2608491,2724.6,2723.2,0.91797]
[1645270813740,0.25,2724.3,2723.2,0.91797]
[1645270813998,0.25,2724.3,2723.4,0.91793]
[1645270814286,0.25,2724.3,2723.5,11.437]
[1645270814488,0.25,2725.1,2723.5,0.52311616]
[1645270814687,0.63110311,2725.1,2723.7,1.55558931]
[1645270814886,0.63110311,2725.1,2723.8,0.1834]
[1645270815084,0.25,2725.2,2724.3,0.9177876]
[1645270815288,0.25,2725.2,2724.3,0.437]
[1645270815684,0.25,2725.2,2724.4,1.8352802]
[1645270815897,0.25,2725.2,2724.6,0.91766]
[1645270816087,0.25,2725.2,2724.5,0.9176401]
[1645270816288,0.65146542,2725.1,2724.4,1.8352802]
[1645270816588,0.00271443,2725.0,2724.2,1.835719]
[1645270816989,0.00271443,2725.0,2724.2,2.753509]
[1645270817586,0.65146542,2725.1,2724.2,2.753509]
[1645270817840,0.00271446,2724.7,2724.2,1.835719]
[1645270818041,0.25271446,2724.7,2724.2,1.835719]
[1645270818639,0.25,2724.7,2724.2,1.835719]
[1645270818842,0.76716069,2724.6,2724.2,1.835719]
[1645270819040,0.76987516,2724.6,2724.2,1.835719]
[1645270819844,0.76716069,2724.6,2724.2,1.835719]
[1645270820246,0.00271448,2724.5,2724.2,1.835719]
[1645270821048,0.76716069,2724.6,2724.2,1.835719]
[1645270821483,0.00271448,2724.5,2724.2,1.835719]
[1645270822381,0.76716069,2724.6,2724.2,1.835719]
[1645270822581,0.00271448,2724.5,2724.2,1.835719]
[1645270823586,0.25,2724.7,2724.2,1.835719]
[1645270823780,0.00271448,2724.5,2724.2,1.835719]
[1645270824681,0.89608832,2724.6,2724.2,1.835719]
[1645270824883,0.00271448,2724.5,2724.2,1.835719]
[1645270825539,0.00271448,2724.5,2723.7,1.83579]
[1645270825540,0.00271448,2724.5,2723.3,2.75354]
[1645270825741,0.00271448,2724.5,2723.4,6.0433]
[1645270825944,16.0,2724.3,2723.1,0.91817]
[1645270826146,16.0,2724.3,2722.4,0.437]
[1645270826147,11.25,2724.1,2722.5,14.05511955]
[1645270826343,5.0,2723.9,2722.5,6.4864]
[1645270826639,0.78577806,2723.3,2722.9,1.8365251]
[1645270826844,1.03577806,2723.3,2722.6,0.92055955]
[1645270827243,3.5,2723.2,2722.6,0.00221955]
[1645270827444,0.00271462,2723.1,2722.6,0.00221955]
[1645270827640,0.00665864,2722.5,2722.4,0.00087588]
[1645270827840,0.69187669,2722.5,2722.4,0.00087588]
[1645270828442,0.69187669,2722.5,2722.1,0.00221955]
[1645270828647,0.69187669,2722.5,2722.3,0.0008759]
[1645270828842,11.69187669,2722.5,2722.3,0.0008759]
[1645270829492,0.69187669,2722.5,2722.3,0.0008759]
[1645270829688,0.74828119,2722.0,2721.6,0.92097825]
[1645270829889,0.74828119,2722.0,2721.7,0.01886542]
[1645270830089,0.74828119,2722.0,2721.7,0.01664587]
[1645270830890,0.74828119,2722.0,2721.2,0.00221955]
[1645270831088,0.74828119,2722.0,2721.7,0.0008761]
[1645270831294,1.66719119,2722.0,2721.7,0.0008761]
[1645270831688,0.80943555,2721.8,2721.7,0.0008761]
[1645270831887,0.91888,2722.4,2721.7,0.0008761]
[1645270832096,0.91888,2722.4,2720.9,9.3277737]
[1645270832097,0.00665864,2722.5,2721.1,2.02324955]
[1645270832292,0.00665864,2722.5,2721.6,0.00087613]
[1645270832493,0.00665864,2722.5,2721.7,0.1836]
[1645270832740,0.00665864,2722.5,2722.4,0.03742549]
[1645270832943,0.89231913,2722.5,2722.4,0.03742549]
[1645270833960,1.81111913,2722.5,2722.4,0.03742549]
[1645270834643,9.5,2722.4,2721.9,0.00221955]
[1645270834847,9.5,2722.4,2722.3,0.0008759]
[1645270834848,11.0,2722.4,2722.3,0.0008759]
[1645270835046,14.5,2722.4,2722.3,0.0008759]
[1645270835444,3.5,2722.4,2722.3,0.0008759]
[1645270835644,0.91888,2722.3,2721.5,0.00221955]
[1645270835845,3.5,2722.4,2722.0,0.0219005]
[1645270836245,1.81119913,2722.5,2722.0,0.0219005]
[1645270836500,5.31119913,2722.5,2722.0,0.0219005]
[1645270836687,16.31119913,2722.5,2722.0,0.0219005]
[1645270836887,5.31119913,2722.5,2721.3,0.00221955]
[1645270837089,5.26119913,2722.5,2722.1,0.00087597]
[1645270837493,1.76119913,2722.5,2722.1,0.00087597]
[1645270837690,0.91887,2722.3,2722.1,0.00087597]
[1645270838089,0.91887,2722.3,2721.7,0.00221955]
[1645270838290,0.91887,2722.3,2722.1,0.00087598]
[1645270838892,0.89231913,2722.5,2722.1,0.00087598]
[1645270838893,1.81109913,2722.5,2722.1,0.00087598]
[1645270839193,1.81109913,2722.5,2721.6,1.8375428]
[1645270839388,1.81109913,2722.5,2722.2,0.00087595]
[1645270840437,1.81109913,2722.5,2721.7,0.00221955]
[1645270840638,1.81109913,2722.5,2722.2,0.00087594]
[1645270840838,0.89414825,2722.4,2722.2,0.00087594]
[1645270841043,0.89414825,2722.4,2722.2,0.91953464]
[1645270841748,0.89414825,2722.4,2722.1,1.837221]
[1645270841940,0.89414825,2722.4,2722.2,0.00087595]
[1645270842943,0.89414825,2722.4,2721.9,0.00221955]
[1645270843140,0.89414825,2722.4,2722.2,0.00087595]
[1645270844090,0.89414825,2722.4,2721.9,0.00221955]
[1645270844297,0.89414825,2722.4,2722.2,0.00087595]
[1645270845291,0.89414825,2722.4,2721.9,0.00221955]
[1645270845489,0.89414825,2722.4,2722.2,0.00087595]
[1645270846493,0.89414825,2722.4,2722.0,0.0219005]
[1645270846494,0.89414825,2722.4,2722.0,0.9187583]
[1645270846692,0.89414825,2722.4,2722.0,0.01702761]
[1645270847732,1.14414825,2722.4,2722.0,0.86768308]
[1645270849938,1.14414825,2722.4,2722.0,0.76768308]
[1645270851339,1.14414825,2722.4,2721.9,0.00221955]
[1645270851588,1.14414825,2722.4,2721.9,0.93694027]
[1645270851589,10.996593,2722.3,2721.9,0.93694027]
[1645270851785,10.996593,2722.3,2721.9,0.93915982]
[1645270851987,10.996593,2722.3,2721.9,0.93694027]
[1645270852384,10.996593,2722.3,2721.9,0.9187857]
[1645270852586,11.915423,2722.3,2721.9,0.9187857]
[1645270853084,0.91883,2722.3,2721.9,0.9187857]
[1645270853286,1.14414825,2722.4,2721.9,0.9187857]
[1645270853487,1.14414825,2722.4,2721.9,0.92100525]
[1645270853685,1.14414825,2722.4,2721.9,0.9187857]
[1645270853887,1.14414825,2722.4,2721.9,0.00221955]
[1645270854090,1.14414825,2722.4,2721.9,0.0181549]
[1645270854286,1.14414825,2722.4,2721.9,0.02037445]
[1645270854687,1.14414825,2722.4,2721.9,0.0181549]
[1645270854887,1.14414825,2722.4,2721.7,0.00221955]
[1645270855087,1.14414825,2722.4,2721.9,0.017907]
[1645270855332,1.14414825,2722.4,2721.9,0.936627]
[1645270855537,3.5,2722.3,2721.9,0.9367002]
[1645270855733,1.14414825,2722.4,2721.9,0.9367002]
[1645270856133,1.14414825,2722.4,2721.9,0.9187932]
[1645270856431,1.14414825,2722.4,2721.9,0.9367002]
[1645270856833,1.14414825,2722.4,2721.9,0.93891975]
[1645270857234,1.14414825,2722.4,2721.9,0.92101275]
[1645270857435,1.14414825,2722.4,2721.9,0.93891975]
[1645270857734,1.14414825,2722.4,2721.9,0.9367002]
[1645270858334,2.06290825,2722.4,2721.9,0.9367002]
[1645270858537,2.06290825,2722.4,2721.9,0.9187932]
[1645270858737,2.06290825,2722.4,2721.9,0.93897428]
[1645270859583,0.91879,2722.3,2721.9,0.92101275]
[1645270859782,0.91879,2722.3,2721.9,0.9187932]
[1645270859981,0.91879,2722.3,2721.9,0.93675473]
[1645270860184,1.14414825,2722.4,2721.9,0.93675473]
[1645270860382,1.14414825,2722.4,2722.0,0.9187519]
[1645270861183,0.91878,2722.3,2722.0,0.9187519]
[1645270861982,1.14414825,2722.4,2722.0,0.9187519]
[1645270862387,2.06288825,2722.4,2722.0,0.9196279]
[1645270863039,1.14414825,2722.4,2722.0,0.9196279]
[1645270863240,1.14414825,2722.4,2722.0,0.9187519]
[1645270863441,2.06288825,2722.4,2722.0,0.9187519]
[1645270863641,2.06288825,2722.4,2722.1,0.00087598]
[1645270863841,2.06288825,2722.4,2722.1,0.91966558]
[1645270864240,1.14414825,2722.4,2722.1,0.91966558]
[1645270864442,1.14414825,2722.4,2722.1,0.9187896]
[1645270864847,1.14414825,2722.4,2722.1,0.91966557]
[1645270865645,1.14414825,2722.4,2722.1,0.9187896]
[1645270865844,0.91882,2722.3,2722.1,0.91966557]
[1645270866346,11.0,2722.2,2722.1,0.00087597]
[1645270866591,11.0,2722.2,2720.9,0.1836]
[1645270866592,20.5008,2722.1,2720.9,0.1836]
[1645270866889,20.5008,2722.1,2720.4,2.75666]
[1645270866890,16.0,2721.1,2720.4,0.1837]
[1645270867086,16.0,2721.1,2720.6,0.00219801]
[1645270867087,11.25,2720.9,2720.6,0.00219801]
[1645270867282,11.687,2720.9,2720.0,0.01056818]
[1645270867486,0.67284901,2720.3,2720.0,0.01056818]
[1645270867882,0.03101685,2720.0,2719.5,0.00219801]
[1645270868082,0.03101685,2720.0,2719.2,0.00219801]
[1645270868387,0.28101685,2720.0,2719.2,0.00219801]
[1645270868583,0.28101685,2720.0,2719.4,1.8389687]
[1645270868784,0.28101685,2720.0,2719.4,1.84116671]
[1645270868981,0.67860343,2719.8,2719.4,1.84116671]
[1645270869180,0.28101685,2720.0,2719.4,1.8389687]
[1645270869382,1.20059685,2720.0,2719.4,1.84116671]
[1645270869584,1.20059685,2720.0,2719.4,1.85842341]
[1645270869989,1.20059685,2720.0,2719.4,1.86062142]
[1645270869990,0.28101685,2720.0,2719.4,1.86062142]
[1645270870240,0.28101685,2720.0,2719.4,0.01945471]
[1645270870438,11.28101685,2720.0,2719.2,0.00219801]
[1645270870636,11.28101685,2720.0,2718.9,0.00219801]
[1645270870637,11.91962,2719.9,2718.9,0.00219801]
[1645270870838,11.91962,2719.9,2719.4,0.01945471]
[1645270870839,0.91962,2719.9,2719.4,0.01945471]
[1645270871038,0.72741513,2719.6,2719.4,0.01945471]
[1645270871640,0.72741513,2719.6,2719.2,0.00219801]
[1645270871937,0.72741513,2719.6,2719.2,0.01945614]
[1645270872136,0.25,2719.5,2719.2,0.01945614]
[1645270872341,0.91982,2719.4,2719.2,0.01945614]
[1645270872552,11.91982,2719.4,2719.2,0.01945614]
[1645270873056,0.6540065,2719.1,2719.0,0.01945757]
[1645270873641,0.25,2719.5,2719.0,0.01945757]
[1645270873846,3.75,2719.5,2719.0,0.01945757]
[1645270874089,3.75,2719.5,2718.5,0.00219801]
[1645270874090,11.0,2719.4,2718.5,0.00219801]
[1645270874288,11.43,2719.4,2718.5,0.00219801]
[1645270874488,10.993,2719.0,2718.7,0.0147895]
[1645270874687,10.993,2718.9,2718.1,0.00219801]
[1645270874896,10.993,2718.9,2716.0,0.20611341]
[1645270874897,20.493,2718.1,2716.0,0.20611341]
[1645270875103,20.493,2718.1,2715.3,3.16730521]
[1645270875104,0.01202995,2716.8,2715.3,3.16730521]
[1645270875297,0.01202995,2716.8,2715.2,0.03041846]
[1645270875298,5.0,2716.6,2716.1,0.00219001]
[1645270875488,5.0,2716.6,2715.2,0.03041846]
[1645270875489,0.01247445,2716.2,2715.2,0.03041846]
[1645270875794,11.18122014,2716.6,2714.4,0.4859851]
[1645270875795,0.25,2716.1,2714.4,0.4859851]
[1645270875991,0.25,2716.1,2714.7,0.57479542]
[1645270875992,0.3079,2715.7,2714.7,0.57479542]
[1645270876191,0.3079,2715.7,2714.6,5.0]
[1645270876390,0.25,2716.1,2714.7,0.00218124]
[1645270876587,9.598e-05,2716.1,2715.2,5.0]
[1645270876794,0.25,2716.9,2715.3,3.50218124]
[1645270876997,0.25,2716.9,2715.4,6.3224]
[1645270877194,0.25,2716.9,2715.4,6.38142359]
[1645270877387,0.687,2716.9,2715.5,0.05627393]
[1645270877595,5.0,2716.4,2715.5,7.393e-05]
[1645270877837,5.0,2716.1,2715.5,7.393e-05]
[1645270878037,5.0,2716.1,2714.4,2.51e-05]
[1645270878038,10.457,2715.6,2714.4,2.51e-05]
[1645270878242,5.0,2714.9,2712.5,0.0553489]
[1645270878441,5.0,2714.5,2712.6,0.00216012]
[1645270878638,5.0,2714.5,2712.5,0.05750902]
[1645270878639,0.25,2713.9,2712.5,0.05750902]
[1645270878945,0.25,2713.9,2712.0,0.111]
[1645270878946,5.0,2713.6,2712.0,0.111]
[1645270879141,5.0,2713.6,2710.8,13.05288471]
[1645270879142,5.0,2712.4,2710.8,13.05288471]
[1645270879342,5.0,2712.4,2710.8,11.10243539]
[1645270879343,14.5,2712.2,2710.8,11.10243539]
[1645270879541,0.01260452,2711.1,2708.9,0.76645698]
[1645270879741,14.5,2712.1,2708.9,0.76645698]
[1645270879742,14.5,2712.1,2710.4,0.00829249]
[1645270879743,0.01204896,2710.8,2710.4,0.00829249]
[1645270879942,0.01204896,2710.8,2708.9,0.76645698]
[1645270879943,5.5,2710.7,2709.0,3.5]
[1645270880150,0.14981245,2711.2,2710.2,0.00212063]
[1645270880341,0.437,2711.3,2710.7,0.1]
[1645270880342,0.25,2711.3,2710.7,0.1]
[1645270880542,0.28300486,2712.2,2710.8,9.5]
[1645270880743,0.96351302,2713.5,2710.9,3.50212063]
[1645270880947,1.6085,2713.9,2710.9,0.00212063]
[1645270880948,0.25,2713.4,2710.9,0.00212063]
[1645270881140,0.25,2713.4,2712.2,5.0]
[1645270881341,0.9630213,2713.9,2712.5,5.0]
[1645270881621,0.9630213,2713.9,2712.3,0.98851277]
[1645270881622,3.74472567,2714.6,2713.2,5.0]
[1645270881812,3.74472567,2714.6,2712.6,0.437]
[1645270881813,11.0124219,2715.3,2714.3,9.5]
[1645270881814,0.0124219,2715.3,2714.3,9.5]
[1645270882009,0.25,2716.2,2714.3,9.5]
[1645270882010,1.83509487,2714.8,2714.4,3.5]
[1645270882210,1.83509487,2714.8,2714.5,0.437]
[1645270882211,1.75849487,2714.8,2714.5,0.437]
[1645270882409,0.130083,2716.6,2714.7,5.0]
[1645270882611,4.74103941,2715.3,2715.0,0.08611616]
[1645270882815,0.25,2716.7,2715.2,5.0]
[1645270883010,0.25,2716.7,2715.3,0.437]
[1645270883214,0.25,2716.7,2713.9,0.518]
[1645270883215,0.48818655,2715.1,2714.0,8.957]
[1645270883412,0.48818655,2715.1,2714.5,0.00210581]
[1645270883607,0.48818655,2715.1,2714.3,0.437]
[1645270883608,0.48818655,2715.1,2714.6,0.437]
[1645270883811,0.48818655,2715.1,2714.7,0.72959458]
[1645270884008,0.01296174,2715.9,2714.8,9.5]
[1645270884212,0.1841,2716.5,2715.1,5.0]
[1645270884410,0.25,2716.6,2715.2,0.437]
[1645270884612,0.01225475,2717.2,2715.3,0.437]
[1645270884813,0.1839,2717.4,2716.1,5.0]
[1645270885016,0.97932142,2717.8,2716.2,1.14843443]
[1645270885257,0.01276,2718.1,2715.6,5.78596097]
[1645270885258,0.01276,2718.1,2717.6,0.84378196]
[1645270885452,0.01276,2718.1,2715.6,0.1809571]
[1645270885453,0.00279526,2718.8,2717.3,9.5]
[1645270885646,0.00279526,2718.8,2717.7,5.0]
[1645270885849,0.00279526,2718.8,2717.8,0.437]
[1645270886047,0.00279526,2718.8,2718.2,5.0]
[1645270886250,0.01274469,2720.2,2718.7,5.0]
[1645270886449,1.1452,2721.5,2719.4,10.457]
[1645270886450,0.1839,2720.7,2719.4,10.457]
[1645270886747,1.1452,2721.5,2719.7,5.457]
[1645270886945,1.1452,2721.5,2719.8,1.437]
[1645270887144,1.1452,2721.5,2719.9,0.1837]
[1645270887348,0.01240467,2720.9,2719.8,0.00210581]
[1645270887651,0.01240467,2720.9,2719.1,0.3277]
[1645270887652,0.01291442,2720.2,2719.1,0.00210581]
[1645270887853,0.01291442,2720.2,2717.4,6.26275568]
[1645270887854,0.25574096,2717.8,2717.4,6.26275568]
[1645270888056,0.01267589,2718.9,2717.4,5.457]
[1645270888244,3.6839,2719.9,2717.7,26.515627]
[1645270888245,0.01284098,2719.3,2717.7,26.515627]
[1645270888448,0.01284098,2719.3,2718.4,0.20243035]
[1645270888648,0.01284098,2719.3,2718.0,0.437]
[1645270888848,0.1839,2719.2,2718.1,0.00209249]
[1645270889091,0.1839,2719.2,2717.7,0.437]
[1645270889286,0.13819997,2719.5,2718.0,0.437]
[1645270889486,0.1839,2719.4,2718.1,0.00209249]
[1645270889689,0.1839,2719.4,2717.7,0.437]
[1645270889986,0.1839,2719.4,2717.8,0.00209249]
[1645270889987,0.50018,2717.9,2717.8,0.00209249]
[1645270890289,0.15093418,2719.5,2717.8,3.937]
[1645270890290,0.13819997,2719.5,2717.8,3.937]
[1645270890487,0.1839,2719.9,2717.9,3.5]
[1645270890694,0.1839,2719.9,2718.0,0.43909249]
[1645270890894,11.0,2719.8,2718.1,0.00209249]
[1645270891091,0.64099916,2718.7,2717.8,0.00209249]
[1645270891293,5.0,2719.4,2717.6,0.00209249]
[1645270891294,0.36794,2717.8,2717.6,0.00209249]
[1645270891494,2.1483751,2719.4,2717.7,5.0]
[1645270891495,0.36794,2718.8,2717.7,5.0]
[1645270891694,0.14913617,2719.4,2717.8,0.00209249]
[1645270891695,0.36794,2719.2,2717.8,0.00209249]
[1645270891893,0.1839,2719.9,2717.2,3.5]
[1645270891894,0.1839,2719.6,2717.9,0.437]
[1645270892289,0.14466985,2719.9,2718.0,0.00209249]
[1645270892488,0.00280129,2718.9,2718.6,0.20243035]
[1645270892768,0.00280129,2718.9,2718.6,0.437]
[1645270892964,0.00280129,2718.9,2717.8,0.01509815]
[1645270893166,0.00280129,2718.9,2717.8,0.38339815]
[1645270893366,0.00280129,2718.9,2718.4,0.50145]
[1645270893562,0.1839,2719.6,2718.4,0.00209249]
[1645270893761,0.1839,2719.6,2718.4,0.20243035]
[1645270893762,0.00280131,2718.5,2718.4,0.20243035]
[1645270894166,1.31e-06,2718.5,2718.4,5.0]
[1645270894372,1.31e-06,2718.5,2718.1,5.0]
[1645270894561,1.31e-06,2718.5,2718.4,5.0]
[1645270894765,3.5123719,2720.9,2718.5,0.00209319]
[1645270894969,3.5123719,2720.9,2718.1,0.00209319]
[1645270894970,11.0,2720.1,2718.1,0.00209319]
[1645270895263,11.0,2720.1,2717.6,6.2293]
[1645270895264,0.63593448,2719.4,2717.9,0.00209319]
[1645270895466,0.01270174,2720.2,2717.9,1.259158]
[1645270895672,0.1839,2720.5,2718.4,5.0]
[1645270895872,0.1838,2721.3,2718.5,0.43909319]
[1645270896065,0.36794,2720.9,2718.6,5.00209319]
[1645270896263,0.36794,2720.4,2718.7,0.62289319]
[1645270896487,0.64588852,2720.6,2719.6,0.20243035]
[1645270896690,0.64588852,2720.6,2719.6,0.437]
[1645270897291,0.0028012,2720.2,2719.6,0.437]
[1645270898090,0.0028012,2720.2,2718.9,0.00209319]
[1645270898091,0.0028012,2720.2,2718.9,0.437]
[1645270898289,0.7497623,2719.9,2718.9,0.437]
[1645270898492,0.7497623,2719.9,2719.0,0.00209319]
[1645270898888,0.7497623,2719.9,2718.9,0.00994989]
[1645270899088,0.00280121,2720.0,2718.9,0.00994989]
[1645270899487,0.1837,2720.6,2718.9,0.00994989]
[1645270899690,0.00280124,2719.6,2718.9,0.00994989]
[1645270900089,0.00280124,2719.6,2719.4,0.20243035]
[1645270900338,0.00280124,2719.6,2718.9,0.44694989]
[1645270900740,3.6837,2720.3,2719.0,0.00209319]
[1645270900942,0.00280125,2719.4,2719.0,0.00209319]
[1645270901245,0.00280125,2719.4,2718.9,0.00994989]
[1645270901839,0.00280125,2719.4,2717.8,0.19897328]
[1645270901840,0.00959646,2718.8,2718.1,0.00209319]
[1645270902041,0.00959646,2718.8,2717.9,0.00209319]
[1645270902644,3.50959646,2718.8,2717.9,0.00209319]
[1645270903039,3.50959646,2718.8,2716.4,6.4696]
[1645270903040,0.1839,2718.7,2717.7,0.00209319]
[1645270903443,0.00280116,2718.6,2717.8,0.01527328]
[1645270903639,0.68034476,2718.4,2717.8,0.01527328]
[1645270903844,3.5,2718.3,2717.8,0.01527328]
[1645270904092,3.5,2718.3,2717.8,7.328e-05]
[1645270904292,3.5,2718.3,2716.1,1.84031]
[1645270904293,11.0,2718.2,2717.6,0.15636875]
[1645270904497,11.0,2718.2,2715.2,3.6803026]
[1645270904498,0.01209327,2717.7,2716.0,0.00207292]
[1645270904697,0.01209327,2717.7,2715.8,0.00207292]
[1645270904698,0.1839,2717.6,2715.8,0.00207292]
[1645270904893,0.13487604,2717.7,2715.8,1.46183934]
[1645270905190,0.1839,2718.0,2715.8,1.46183934]
[1645270905191,0.25,2717.2,2715.9,0.437]
[1645270905389,0.25,2717.2,2715.9,5.43907292]
[1645270905591,0.25,2717.2,2716.0,3.5]
[1645270905790,0.25,2717.2,2716.1,0.43907292]
[1645270906089,0.25,2717.2,2716.2,0.00207292]
[1645270906291,0.25,2717.2,2716.3,0.437]
[1645270906496,0.25,2717.2,2716.4,0.00207292]
[1645270907090,3.5,2717.7,2716.4,0.00207292]
[1645270907291,0.82172354,2717.8,2716.7,0.20243035]
[1645270907491,0.25,2717.5,2716.8,0.00207292]
[1645270907732,0.2,2717.5,2716.5,0.00207292]
[1645270908136,0.2,2717.5,2716.6,0.437]
[1645270908337,3.50959646,2718.8,2716.7,5.0]
[1645270908541,0.25,2718.4,2716.8,0.437]
[1645270908740,0.25,2718.4,2717.4,5.0]
[1645270908939,0.25,2718.4,2717.7,0.20243035]
[1645270909149,0.25,2718.4,2717.7,0.63943035]
[1645270909339,0.25,2718.4,2717.8,0.00206256]
[1645270909543,0.00959646,2718.8,2717.8,0.00206256]
[1645270909544,0.00280505,2718.0,2717.9,0.437]
[1645270910343,0.00959646,2718.8,2717.9,0.437]
[1645270910543,0.00280504,2718.1,2718.0,0.00206241]
[1645270910741,0.00280504,2718.1,2718.0,0.437]
[1645270911501,0.25959646,2718.8,2718.0,0.437]
[1645270911692,0.80181188,2718.6,2718.1,0.00206241]
[1645270911888,0.25959646,2718.8,2717.7,0.20243035]
[1645270911889,0.00280504,2718.2,2717.8,0.00206241]
[1645270912089,0.00280504,2718.2,2717.7,0.63943035]
[1645270912688,0.00959646,2718.8,2717.7,0.63943035]
[1645270912888,0.00959646,2718.8,2717.8,0.00206241]
[1645270912889,0.00280504,2718.1,2717.8,0.00206241]
[1645270913088,0.00280504,2718.1,2717.7,1.55928035]
[1645270913489,0.00280504,2718.1,2717.7,0.63943035]
[1645270913890,0.00959646,2718.8,2717.7,0.63943035]
[1645270914194,0.00959646,2718.8,2717.8,0.00206241]
[1645270914195,0.00280505,2718.0,2717.8,0.00206241]
[1645270914390,0.00280505,2718.0,2717.7,0.63943035]
[1645270915239,0.00959646,2718.8,2717.7,0.63943035]
[1645270915442,0.00280505,2718.0,2717.8,0.00206241]
[1645270915742,0.00280505,2718.0,2717.7,0.63943035]
[1645270916342,0.00959646,2718.8,2717.7,0.437]
[1645270916541,0.00959646,2718.8,2717.8,0.00206241]
[1645270916542,0.00280505,2718.0,2717.8,0.00206241]
[1645270916746,0.00280505,2718.0,2717.7,0.437]
[1645270916945,0.00280505,2718.0,2717.2,0.45059612]
[1645270917144,0.00280505,2718.0,2717.2,0.45265853]
[1645270917341,0.00280505,2718.0,2717.3,0.00206241]
[1645270917546,0.25,2718.0,2717.3,0.00206241]
[1645270917845,0.00280507,2717.7,2717.2,0.01359612]
[1645270918643,3.5,2718.4,2717.1,0.20243035]
[1645270918842,14.5,2718.4,2717.2,0.00206241]
[1645270919088,14.5,2718.4,2717.2,0.01359629]
[1645270919089,0.00280504,2717.6,2717.2,0.01359629]
[1645270919887,0.90358629,2717.7,2716.6,0.20449276]
[1645270920091,0.90358629,2717.7,2716.3,0.18596241]
[1645270920288,0.90358629,2717.7,2716.3,0.92243241]
[1645270920488,0.00280499,2717.6,2717.1,0.01359654]
[1645270921085,14.6839,2718.0,2716.3,0.92243241]
[1645270921086,11.43877548,2718.0,2716.3,0.92243241]
[1645270921586,0.86010897,2717.6,2717.1,0.00417197]
[1645270921793,13.27982548,2718.0,2717.1,0.00417197]
[1645270922186,11.43877548,2718.0,2717.1,0.00417197]
[1645270922386,7.75477548,2717.8,2716.2,2.2282441]
[1645270922589,3.684,2718.0,2717.2,0.01095576]
[1645270922590,11.25729428,2717.7,2717.2,0.01095576]
[1645270922840,7.75729428,2717.7,2717.2,0.01095576]
[1645270923239,0.88083671,2717.3,2717.2,5.576e-05]
[1645270923447,0.88083671,2717.3,2716.3,0.00205248]
[1645270923448,14.5,2717.3,2716.3,0.00205248]
[1645270923646,14.5,2717.3,2716.1,0.00205248]
[1645270923647,3.5,2717.3,2716.1,0.00205248]
[1645270923941,0.25,2718.0,2715.9,0.00205248]
[1645270923942,3.6839,2717.9,2715.9,0.00205248]
[1645270924142,3.6839,2717.9,2715.7,0.00205248]
[1645270924346,0.72054114,2717.2,2715.8,0.1839]
[1645270924541,0.72054114,2717.2,2715.7,1.3576144]